bitfinex/quotes_ETHUSD_20250801
["timestamp","ask_amount","ask_price","bid_price","bid_amount"]
[1754058684547,4.476,3645.8,3645.1,2.4054]
[1754058684876,15.68193486,3646.3,3645.1,5.66369108]
[1754058684877,4.476,3645.7,3645.1,5.66369108]
[1754058685035,4.476,3645.6,3645.5,2.74310794]
[1754058685230,6.589,3646.6,3645.5,2.74310794]
[1754058685231,6.589,3646.6,3645.5,2.4054]
[1754058685436,4.476,3646.5,3645.5,2.4054]
[1754058685648,2.74279226,3646.0,3645.5,2.4054]
[1754058685847,22.27093486,3646.6,3645.6,2.4054]
[1754058686044,6.93123293,3646.5,3645.6,2.4054]
[1754058686273,6.89695349,3646.5,3645.6,2.4054]
[1754058686440,2.74326425,3645.3,3645.0,2.4054]
[1754058686773,2.74370413,3644.8,3644.1,0.01]
[1754058686941,4.476,3644.7,3644.1,0.01]
[1754058687376,2.74386061,3644.5,3644.1,0.01]
[1754058687599,2.74386061,3644.5,3644.4,1.935]
[1754058687600,4.476,3644.5,3644.4,1.935]
[1754058687904,2.74301695,3645.7,3644.4,0.47089821]
[1754058688108,15.68193486,3646.7,3644.5,0.5774386]
[1754058688267,4.476,3646.5,3644.6,2.4054]
[1754058688599,4.476,3646.4,3645.1,0.55]
[1754058688800,4.476,3646.3,3646.2,2.74251379]
[1754058689003,0.01,3646.9,3646.2,2.4054]
[1754058689173,0.01,3646.9,3645.7,3.0]
[1754058689174,0.01,3646.9,3646.8,2.74213008]
[1754058689760,0.01,3646.9,3646.8,5.14753008]
[1754058690902,0.01,3646.9,3646.8,5.69753008]
[1754058691408,0.01,3646.9,3646.8,9.18110397]
[1754058691784,1e-08,3646.9,3646.8,13.79390397]
[1754058693011,1e-08,3646.9,3646.4,2.74238896]
[1754058693012,1e-08,3646.9,3646.4,1.933]
[1754058693307,1e-08,3646.9,3646.7,2.4054]
[1754058693482,1e-08,3646.9,3646.8,2.76955138]
[1754058693687,1e-08,3646.9,3646.8,5.14753008]
[1754058693909,1e-08,3646.9,3646.8,6.53787369]
[1754058694214,1e-08,3646.9,3646.8,6.51045239]
[1754058694369,1e-08,3646.9,3646.8,2.4054]
[1754058694570,1e-08,3646.9,3645.0,2.7434451]
[1754058694571,1e-08,3646.9,3646.2,1.933]
[1754058694770,1e-08,3646.9,3646.5,2.4054]
[1754058694973,1e-08,3646.9,3646.5,5.14773505]
[1754058695210,1e-08,3646.9,3646.5,1.933]
[1754058695516,1e-08,3646.9,3646.0,3.4571]
[1754058695669,1e-08,3646.9,3646.3,2.74243637]
[1754058695866,1e-08,3646.9,3646.0,2.3766]
[1754058695867,3.01630493,3646.9,3646.0,2.3766]
[1754058696092,2.74242568,3646.5,3645.5,2.3766]
[1754058696282,0.27419663,3646.9,3645.7,2.74295745]
[1754058696493,0.30161647,3646.8,3645.9,2.7428018]
[1754058696822,0.27419663,3646.9,3646.1,0.55]
[1754058696974,1e-08,3646.9,3646.7,2.7421524]
[1754058697305,1e-08,3646.9,3646.7,2.74220257]
[1754058697519,1e-08,3646.9,3646.8,2.74213008]
[1754058697672,1e-08,3646.9,3646.8,3.29213008]
[1754058697878,1e-08,3646.9,3646.8,5.69615138]
[1754058698092,1e-08,3646.9,3646.8,5.66873008]
[1754058698301,1e-08,3646.9,3646.8,13.14273008]
[1754058699877,1e-08,3646.9,3646.8,8.66873008]
[1754058700186,1e-08,3646.9,3646.8,13.14273008]
[1754058700399,1e-08,3646.9,3646.8,8.66873008]
[1754058700708,1e-08,3646.9,3646.8,13.14273008]
[1754058700872,1e-08,3646.9,3646.8,8.66873008]
[1754058701274,1e-08,3646.9,3646.8,8.11873008]
[1754058701515,1e-08,3646.9,3646.8,12.13563008]
[1754058701722,1e-08,3646.9,3646.8,10.21613008]
[1754058701872,1e-08,3646.9,3646.8,12.59273008]
[1754058702076,1e-08,3646.9,3646.8,7.21613008]
[1754058702313,1e-08,3646.9,3646.8,10.21613008]
[1754058702897,1e-08,3646.9,3646.8,12.82243008]
[1754058703092,1e-08,3646.9,3646.8,6.42893008]
[1754058703342,1e-08,3646.9,3646.8,2.87893008]
[1754058704236,1e-08,3646.9,3646.8,0.1368]
[1754058704433,1e-08,3646.9,3646.8,0.1388]
[1754058704596,2.35430001,3646.9,3646.8,0.002]
[1754058704798,2.72753001,3646.9,3646.8,0.002]
[1754058704998,5.4695849,3646.9,3646.8,0.002]
[1754058705317,0.23643001,3646.9,3646.8,0.002]
[1754058705506,0.00100001,3646.9,3646.8,4.66363008]
[1754058705817,0.00100001,3646.9,3646.8,5.80753008]
[1754058707401,0.00100001,3646.9,3646.8,8.80753008]
[1754058708338,0.00100001,3646.9,3646.8,5.88093008]
[1754058708547,0.00100001,3646.9,3646.8,10.35393008]
[1754058708747,0.00100001,3646.9,3646.8,2.74413008]
[1754058708896,2.35530001,3646.9,3646.8,0.002]
[1754058709097,2.60451001,3646.9,3646.8,0.002]
[1754058709302,0.38701001,3646.9,3646.8,2.74413008]
[1754058709537,0.13780001,3646.9,3646.8,0.002]
[1754058710530,0.13780001,3646.9,3646.8,2.74413008]
[1754058710844,0.00100001,3646.9,3646.8,3.43093008]
[1754058711404,0.00100001,3646.9,3646.8,10.28053008]
[1754058712569,1e-08,3646.9,3646.8,13.28053008]
[1754058713602,1e-08,3647.3,3647.2,3.29182934]
[1754058713834,1e-08,3647.3,3647.2,7.92904763]
[1754058714037,1e-08,3647.3,3647.2,10.27822934]
[1754058714241,1.904,3649.4,3647.3,3.55]
[1754058714442,1.904,3649.4,3648.8,2.74062705]
[1754058714650,0.1368,3649.2,3648.7,0.1368]
[1754058714802,0.1368,3649.2,3648.8,2.74062705]
[1754058715008,0.1368,3649.2,3648.7,2.74069132]
[1754058715306,0.1368,3649.2,3648.8,2.74062705]
[1754058716217,0.1368,3649.5,3648.8,3.42742705]
[1754058716429,0.1368,3649.5,3648.8,0.6868]
[1754058716629,0.1368,3649.5,3648.8,5.80402705]
[1754058716804,0.1368,3649.6,3648.8,2.87742705]
[1754058717010,2.3543,3649.7,3648.7,0.55]
[1754058717264,1.904,3649.2,3647.8,1.9195]
[1754058717468,1.904,3649.2,3648.2,3.55]
[1754058717469,4.64434955,3649.2,3648.2,3.55]
[1754058717766,1.904,3649.2,3648.3,4.472]
[1754058717907,1.904,3649.2,3648.4,3.55]
[1754058718104,1.904,3649.2,3647.9,0.55]
[1754058718349,2.3543,3648.8,3648.0,4.472]
[1754058718504,2.74094114,3648.4,3647.8,4.472]
[1754058718722,1.904,3648.4,3647.8,4.472]
[1754058719019,2.3543,3648.4,3647.0,9.32894985]
[1754058719220,2.3543,3648.4,3647.1,4.471]
[1754058719221,0.23543,3648.3,3647.1,4.471]
[1754058719517,4.64498692,3648.4,3647.4,2.74161502]
[1754058719721,2.74105367,3648.3,3647.6,2.74146792]
[1754058719916,4.64495255,3648.4,3647.7,2.74143511]
[1754058720245,4.6449365,3648.4,3647.7,2.74144579]
[1754058720563,3.1271356,3648.3,3647.2,4.471]
[1754058720706,2.3543,3648.3,3647.2,0.02741829]
[1754058721051,2.74122855,3648.0,3647.3,2.74168223]
[1754058721223,2.74130758,3647.9,3647.2,7.21281349]
[1754058721549,1.904,3647.9,3646.8,0.002]
[1754058721751,2.93182939,3647.8,3647.1,7.21285536]
[1754058722043,1.904,3648.6,3647.2,4.94691829]
[1754058722248,2.7408524,3648.5,3647.8,2.74132867]
[1754058722420,2.7408727,3648.5,3647.7,2.74143431]
[1754058722620,1.904,3648.6,3647.6,0.55]
[1754058722826,0.01,3648.9,3647.6,0.55]
[1754058722827,0.01,3648.9,3648.4,2.74090445]
[1754058723040,0.01,3648.9,3648.1,0.55]
[1754058723358,0.01,3648.9,3648.2,0.55]
[1754058723567,0.01,3648.9,3648.8,3.29062705]
[1754058723720,0.01,3648.9,3648.8,10.78903332]
[1754058723914,0.01,3648.9,3648.8,13.13822705]
[1754058724426,2.74205489,3646.9,3644.9,0.15923946]
[1754058724609,2.74205489,3646.9,3644.1,0.11]
[1754058724610,2.74333369,3645.2,3644.1,0.01]
[1754058725048,8.09763369,3645.2,3644.1,0.01]
[1754058725277,8.09763369,3645.2,3644.1,4.953]
[1754058725481,8.09763369,3645.2,3644.1,4.951]
[1754058725640,2.74333369,3645.2,3644.1,4.951]
[1754058725984,2.74333369,3645.2,3644.6,1.28781871]
[1754058726282,1.93561278,3645.3,3644.2,7.68305469]
[1754058726577,1.93561278,3645.3,3644.6,1.9886]
[1754058726779,1.93561278,3645.3,3644.9,4.941]
[1754058726985,1.93561278,3645.3,3644.9,7.82128981]
[1754058727145,1.93561278,3645.3,3644.9,5.0778]
[1754058727346,1.93561278,3645.3,3644.9,4.94]
[1754058727592,1.93561278,3645.3,3645.0,2.74342174]
[1754058727898,1.93561278,3645.3,3645.2,4.86873369]
[1754058728075,1.93561278,3645.3,3645.2,0.1368]
[1754058728282,1.93561278,3645.3,3645.2,2.88013369]
[1754058728597,0.03024394,3645.3,3645.2,5.85413369]
[1754058728744,2.74205634,3646.9,3645.2,5.85413369]
[1754058728745,3.20506548,3647.3,3646.0,0.55]
[1754058728941,0.1368,3646.9,3646.5,0.55]
[1754058729143,3.823783,3647.5,3646.5,2.56602355]
[1754058729342,0.1368,3647.0,3646.6,4.932]
[1754058729543,0.9087092,3647.2,3646.6,4.932]
[1754058729739,0.90668779,3647.1,3646.7,0.1368]
[1754058730182,0.90668779,3647.1,3646.7,2.87900512]
[1754058730387,0.90668779,3647.1,3646.2,1.9886]
[1754058730562,0.90668779,3647.1,3646.3,0.55]
[1754058730882,2.74210708,3646.9,3646.3,4.924]
[1754058731080,2.74218455,3646.8,3645.8,1.9886]
[1754058731284,0.90462493,3646.8,3646.0,0.55]
[1754058731456,1.02689955,3646.7,3646.3,2.74247399]
[1754058731653,1.02689955,3646.7,3646.4,2.74240001]
[1754058731870,0.89009955,3646.7,3646.6,2.74228048]
[1754058732191,0.89009955,3646.7,3646.5,0.1368]
[1754058732757,0.89009955,3646.7,3646.2,4.916]
[1754058732980,0.89009955,3646.7,3646.6,3.42908048]
[1754058733160,0.89009955,3646.7,3646.6,5.85308048]
[1754058733491,0.4633,3648.0,3647.0,2.74195309]
[1754058733797,0.1368,3647.7,3647.1,4.914]
[1754058733961,0.89972026,3647.8,3647.2,0.57741829]
[1754058734159,0.89972026,3647.8,3647.5,0.1368]
[1754058734495,0.89972026,3647.8,3647.5,1.9886]
[1754058734695,0.89972026,3647.8,3647.7,3.42825351]
[1754058735009,0.89972026,3647.8,3647.7,5.85225351]
[1754058735488,0.89972026,3647.8,3647.7,10.32185351]
[1754058735690,0.89972026,3647.8,3647.7,5.41685351]
[1754058735997,0.89972026,3647.8,3647.7,2.87825351]
[1754058736197,0.89972026,3647.8,3647.7,4.901]
[1754058736861,0.89972026,3647.8,3647.4,0.1368]
[1754058737282,0.89972026,3647.8,3647.4,1.9886]
[1754058737490,0.89972026,3647.8,3647.7,2.74145351]
[1754058737673,0.89972026,3647.8,3647.7,5.41685351]
[1754058738088,0.89972026,3647.8,3647.7,5.85225351]
[1754058738262,0.89972026,3647.8,3647.7,3.42825351]
[1754058738659,0.89972026,3647.8,3647.0,1.9886]
[1754058738903,0.89972026,3647.8,3647.7,2.74145351]
[1754058739458,0.89972026,3647.8,3647.7,4.73005351]
[1754058739663,0.89972026,3647.8,3647.7,2.74145351]
[1754058740288,0.89972026,3647.8,3647.7,3.29145351]
[1754058740488,0.89972026,3647.8,3647.7,5.87966804]
[1754058740800,0.89972026,3647.8,3647.7,2.87825351]
[1754058740976,0.89972026,3647.8,3647.7,0.1368]
[1754058741615,0.89972026,3647.8,3647.7,2.87825351]
[1754058742119,0.5342089,3647.8,3647.7,5.85225351]
[1754058742290,0.001,3648.7,3648.6,2.74077728]
[1754058742499,0.001,3648.7,3648.6,0.02740777]
[1754058742686,3.20501684,3648.7,3648.4,4.873]
[1754058742886,1.06228288,3648.6,3648.4,4.873]
[1754058743113,0.001,3648.7,3648.4,4.873]
[1754058743328,0.001,3648.7,3648.4,4.872]
[1754058743539,0.001,3648.7,3648.6,2.74077728]
[1754058743686,0.001,3648.7,3648.4,2.74090275]
[1754058743882,0.001,3648.7,3647.8,1.9886]
[1754058743883,0.001,3648.7,3647.9,0.55]
[1754058744111,0.4643,3648.7,3648.0,4.868]
[1754058744313,0.001,3648.7,3647.9,0.55]
[1754058744483,0.001,3648.7,3648.3,2.74094549]
[1754058744829,0.001,3648.7,3648.4,4.863]
[1754058745328,3.20407728,3648.6,3647.9,2.74125712]
[1754058745539,0.59457116,3648.5,3648.0,4.862]
[1754058745829,0.001,3648.7,3648.2,2.74101856]
[1754058745979,2.74174205,3648.7,3648.1,4.858]
[1754058746177,0.001,3648.7,3648.2,2.74102328]
[1754058746430,0.001,3648.7,3648.1,7.59914276]
[1754058746579,0.001,3648.7,3647.8,0.55]
[1754058746789,0.001,3648.7,3648.4,2.74090056]
[1754058747115,0.001,3648.7,3647.8,2.69214]
[1754058747321,0.001,3648.7,3648.1,2.74107948]
[1754058747517,0.001,3648.7,3648.1,4.848]
[1754058747749,0.001,3648.7,3648.6,2.74077728]
[1754058747900,0.001,3648.7,3648.5,2.74082316]
[1754058748096,2.74090932,3648.5,3647.9,1.9886]
[1754058748406,0.001,3648.7,3646.3,2.74249679]
[1754058748407,2.74121572,3648.1,3646.3,2.74249679]
[1754058748600,2.7412951,3648.0,3647.2,2.74175715]
[1754058748795,2.74128899,3648.0,3647.3,7.58574704]
[1754058749038,0.32045951,3647.9,3647.3,7.58574704]
[1754058749233,0.27419093,3648.4,3647.3,4.844]
[1754058749409,0.27419093,3648.4,3647.4,1.9886]
[1754058749596,0.27419093,3648.4,3647.6,2.74146628]
[1754058749597,2.74103091,3648.3,3647.6,2.74146628]
[1754058749801,3.50542147,3648.2,3647.6,2.74146628]
[1754058750038,0.76432794,3648.2,3647.6,4.84]
[1754058750240,0.76432794,3648.2,3647.7,2.74145351]
[1754058750403,0.76432794,3648.2,3647.8,2.74136171]
[1754058750613,0.76432794,3648.2,3647.7,2.74139847]
[1754058750920,3.47843821,3648.4,3647.7,2.74139847]
[1754058751126,3.0,3648.2,3647.7,2.74139847]
[1754058751472,0.27419093,3648.4,3647.7,1.9886]
[1754058751752,0.27419093,3648.4,3647.8,2.74137442]
[1754058751954,1.8882,3648.7,3647.8,2.74137442]
[1754058751955,0.001,3648.7,3647.8,1.9886]
[1754058752247,0.001,3648.7,3648.3,2.74097462]
[1754058752400,0.001,3648.7,3647.9,4.826]
[1754058752600,0.001,3648.7,3648.3,2.7409384]
[1754058752802,0.001,3648.7,3648.0,2.01601228]
[1754058753035,0.001,3648.7,3648.0,4.72976838]
[1754058753342,0.001,3648.7,3648.4,2.74092234]
[1754058753542,0.001,3648.7,3648.6,2.74077728]
[1754058753699,0.1378,3648.7,3648.6,2.74077728]
[1754058754139,0.1378,3648.7,3648.5,2.74082123]
[1754058754444,0.1378,3648.7,3648.1,0.1368]
[1754058754617,0.4633,3648.6,3648.1,2.87793782]
[1754058754804,3.8133235,3648.6,3648.0,2.74121783]
[1754058755149,2.74110061,3648.2,3647.8,0.1368]
[1754058755346,0.1368,3648.0,3647.9,4.815]
[1754058755711,4.8899,3648.5,3647.9,4.815]
[1754058755712,3.0,3648.5,3648.0,2.74118729]
[1754058755910,0.1368,3648.3,3648.0,2.74118729]
[1754058756125,0.1368,3648.3,3647.9,6.7455]
[1754058756520,0.1368,3648.3,3648.2,2.74107779]
[1754058756721,0.1368,3648.3,3648.0,1.9305]
[1754058757147,0.1368,3648.3,3648.1,2.74109013]
[1754058757318,0.1368,3648.3,3648.0,2.74122807]
[1754058757518,0.1368,3648.3,3647.9,4.67178219]
[1754058757834,2.74107779,3648.2,3647.5,2.74155718]
[1754058758032,0.1368,3647.8,3647.5,2.74155718]
[1754058758219,0.1368,3647.8,3647.6,2.74152827]
[1754058758632,0.1368,3647.8,3647.6,2.74149811]
[1754058758852,2.741679,3647.4,3646.5,4.67280325]
[1754058759023,0.30843982,3647.3,3646.5,6.7295]
[1754058759225,3.0,3647.7,3646.6,2.3976]
[1754058759549,0.1368,3647.2,3647.1,2.74190452]
[1754058760050,0.1368,3647.2,3646.7,0.1368]
[1754058760350,0.1368,3647.2,3647.1,2.74190452]
[1754058760553,0.1368,3647.2,3647.1,5.71692356]
[1754058760754,3.0,3648.1,3647.1,2.3976]
[1754058760921,3.4551,3648.7,3648.0,2.74122474]
[1754058761252,3.4551,3648.7,3648.1,2.74109982]
[1754058761415,2.4282,3648.7,3647.6,1.9305]
[1754058761616,1.9741,3648.7,3648.2,2.74107779]
[1754058761844,0.001,3648.7,3648.6,2.74077728]
[1754058762152,1e-08,3648.7,3648.6,5.68837728]
[1754058763448,0.001,3650.0,3649.1,0.55]
[1754058763650,0.001,3650.0,3649.8,2.73987615]
[1754058764328,0.001,3650.0,3649.2,6.7145]
[1754058764529,0.001,3650.0,3649.8,2.73987615]
[1754058764975,0.001,3650.0,3649.8,4.67037615]
[1754058765379,0.001,3650.0,3649.8,5.13747615]
[1754058766238,0.001,3650.0,3649.8,5.71487491]
[1754058766433,0.001,3650.0,3649.8,5.68747615]
[1754058767372,0.001,3650.0,3649.6,4.777]
[1754058767531,2.3314,3649.8,3649.2,2.74032664]
[1754058767725,0.53424,3649.7,3649.0,2.74046859]
[1754058767926,3.27419939,3649.7,3649.0,2.74045514]
[1754058768234,0.53424,3649.7,3649.1,2.74038499]
[1754058768633,0.53424,3649.7,3649.0,2.74046334]
[1754058768988,0.53424,3649.7,3648.9,4.765]
[1754058768989,0.86154549,3649.6,3648.9,4.765]
[1754058769673,0.86154549,3649.6,3649.0,2.74045932]
[1754058769831,3.60163912,3649.6,3648.9,9.43603314]
[1754058770338,0.86154549,3649.6,3648.9,1.9305]
[1754058770525,2.3314,3649.5,3647.9,2.3976]
[1754058770729,2.3314,3649.5,3648.2,0.1368]
[1754058770730,0.1368,3648.7,3648.2,0.1368]
[1754058770929,2.74106981,3648.3,3647.6,0.002]
[1754058771165,0.1368,3648.0,3647.6,0.002]
[1754058771343,10.49664731,3648.8,3647.9,2.74130321]
[1754058771526,2.87778373,3648.4,3647.8,0.1368]
[1754058771731,0.1368,3648.4,3647.8,0.1368]
[1754058771974,0.1368,3648.4,3647.9,2.74129884]
[1754058772379,0.1368,3648.4,3647.8,0.1368]
[1754058772672,0.1368,3648.4,3648.0,2.74119753]
[1754058772828,0.1368,3648.4,3647.9,2.7412823]
[1754058773030,0.1368,3648.4,3647.8,0.1368]
[1754058773464,2.74101741,3648.3,3647.8,0.1368]
[1754058773764,3.46551249,3648.4,3647.8,0.1368]
[1754058774494,0.72456123,3648.4,3648.0,2.74122234]
[1754058774786,0.72456123,3648.4,3647.9,2.74129946]
[1754058775144,0.72456123,3648.4,3647.8,0.1368]
[1754058775563,0.1368,3648.1,3647.6,2.74352725]
[1754058775769,0.1368,3648.1,3647.7,2.74144904]
[1754058775950,0.1368,3648.1,3647.6,2.74351225]
[1754058776451,0.1368,3648.1,3647.7,2.74145073]
[1754058776977,0.1368,3648.1,3647.6,0.002]
[1754058777179,0.58776123,3648.4,3647.6,0.002]
[1754058777180,2.3071,3648.0,3647.6,0.002]
[1754058777352,0.1368,3647.8,3647.6,0.002]
[1754058778678,4.727,3648.6,3647.7,1.9305]
[1754058778864,2.7408524,3648.5,3647.8,2.74136504]
[1754058779245,3.0,3648.5,3647.6,0.002]
[1754058779473,1.00341,3648.4,3647.9,2.74125642]
[1754058779688,1.00341,3648.4,3647.7,2.74145351]
[1754058779889,1.00341,3648.4,3647.7,2.74142494]
[1754058780260,1.00341,3648.4,3648.1,2.74114298]
[1754058780471,1.853,3649.6,3648.7,2.74067291]
[1754058780786,2.74017646,3649.4,3648.7,2.74067291]
[1754058781085,3.0,3649.1,3648.2,2.3976]
[1754058781284,3.0,3649.4,3648.2,2.3976]
[1754058781622,1.00251,3649.3,3648.3,0.57741002]
[1754058781822,4.714,3649.5,3648.4,2.9476]
[1754058782124,4.714,3649.5,3649.1,2.74034734]
[1754058782322,4.714,3649.5,3649.2,2.74026474]
[1754058782531,4.714,3649.5,3648.6,0.02740777]
[1754058782532,3.0,3649.4,3648.9,1.9305]
[1754058782895,6.594,3649.9,3649.3,2.74025155]
[1754058783088,1.17516864,3649.9,3649.8,2.73987615]
[1754058783293,0.011,3649.9,3649.8,2.73987615]
[1754058784000,0.011,3649.9,3649.8,5.13747615]
[1754058784186,0.011,3649.9,3649.8,5.16487491]
[1754058784390,0.011,3649.9,3649.8,5.71487491]
[1754058784638,0.011,3649.9,3649.8,5.68747615]
[1754058785233,1e-08,3650.0,3649.9,3.28980109]
[1754058785436,1e-08,3650.0,3649.9,5.19430109]
[1754058785627,1e-08,3650.0,3649.9,5.6895991]
[1754058785934,1e-08,3650.0,3649.9,5.87296235]
[1754058786241,1e-08,3650.0,3649.9,3.28980109]
[1754058786398,1e-08,3650.0,3649.9,9.89530109]
[1754058786805,1e-08,3650.0,3649.6,1.9045]
[1754058787025,1e-08,3650.0,3649.7,7.43695122]
[1754058787235,1e-08,3650.0,3649.6,2.74001456]
[1754058787431,1e-08,3650.0,3649.9,2.73980109]
[1754058787647,1e-08,3650.0,3649.7,4.696]
[1754058787960,1e-08,3650.0,3649.9,2.73980109]
[1754058788120,1e-08,3650.0,3649.9,3.3171991]
[1754058788447,1e-08,3650.0,3649.9,5.19430109]
[1754058788800,1e-08,3650.0,3649.9,5.33110109]
[1754058789002,1e-08,3650.0,3649.9,4.8248]
[1754058789231,1e-08,3650.0,3649.9,4.689]
[1754058789407,1e-08,3650.0,3649.8,2.73987615]
[1754058789624,1e-08,3650.0,3649.8,4.687]
[1754058790352,1e-08,3650.0,3649.6,0.1368]
[1754058790550,1e-08,3650.0,3649.8,2.73987615]
[1754058790756,1e-08,3650.0,3649.9,2.73980109]
[1754058791051,1e-08,3650.0,3649.9,9.79620109]
[1754058791550,1e-08,3650.0,3649.9,10.34620109]
[1754058791906,1e-08,3650.0,3649.9,10.48300109]
[1754058792403,0.001,3650.4,3650.3,3.28950086]
[1754058792404,1e-08,3650.4,3650.3,3.28950086]
[1754058792598,1e-08,3650.4,3650.3,8.10830086]
[1754058792810,1e-08,3650.4,3650.3,10.48070086]
[1754058793018,1e-08,3650.4,3650.3,13.48070086]
[1754058794733,0.01,3651.9,3651.8,2.73837559]
[1754058795054,0.01,3651.9,3651.8,7.58655934]
[1754058795229,0.01,3651.9,3651.8,7.55217559]
[1754058795430,0.01,3651.9,3651.8,10.00667559]
[1754058796153,0.01,3651.9,3651.8,10.47457559]
[1754058796356,1e-08,3651.9,3651.8,10.47457559]
[1754058796594,1e-08,3651.9,3651.8,13.47457559]
[1754058797161,1e-08,3651.9,3651.8,13.62562443]
[1754058797458,1e-08,3651.9,3651.8,13.83363335]
[1754058797660,1e-08,3651.9,3651.8,14.2183512]
[1754058797960,0.001,3653.4,3653.3,3.28725125]
[1754058798256,0.001,3653.4,3653.3,7.95425125]
[1754058798453,0.001,3653.4,3653.3,8.09105125]
[1754058799574,0.001,3653.4,3653.3,0.1368]
[1754058799771,0.001,3653.4,3653.3,7.53505125]
[1754058799924,0.001,3653.4,3653.3,4.7978]
[1754058800124,0.001,3653.4,3653.3,7.53505125]
[1754058800754,0.001,3653.4,3653.3,8.08505125]
[1754058800954,0.001,3653.4,3653.3,9.98955125]
[1754058801652,0.001,3653.4,3653.3,10.45745125]
[1754058802390,0.001,3653.4,3653.3,9.97955125]
[1754058802693,0.001,3653.4,3653.3,8.07305125]
[1754058802891,0.001,3653.4,3653.3,3.42405125]
[1754058803054,0.001,3653.4,3653.3,10.00392376]
[1754058803392,0.001,3653.4,3653.3,8.32855125]
[1754058803689,0.001,3653.4,3653.3,13.44245125]
[1754058803855,0.001,3653.8,3653.7,3.28695158]
[1754058804054,0.001,3653.8,3653.7,7.95932109]
[1754058804283,0.001,3653.8,3653.7,10.30435158]
[1754058804481,1e-08,3653.9,3653.8,3.28687667]
[1754058804811,0.011,3654.9,3654.8,3.28612783]
[1754058804979,0.011,3654.9,3654.8,7.92812783]
[1754058805162,0.011,3654.9,3654.8,11.06492783]
[1754058805367,0.01,3655.9,3655.8,3.28537939]
[1754058805707,0.01,3655.9,3655.8,8.06417939]
[1754058805856,0.01,3655.9,3655.8,0.1368]
[1754058806052,0.01,3655.9,3655.8,7.51417939]
[1754058806373,0.01,3655.9,3655.8,0.1368]
[1754058806577,3.21826952,3655.9,3655.1,9.31283761]
[1754058806765,0.59534812,3655.8,3655.1,6.577]
[1754058806966,0.01,3655.9,3655.4,2.73567872]
[1754058807167,0.01,3655.9,3655.8,2.87217939]
[1754058807381,1e-08,3655.9,3655.8,7.95073318]
[1754058807556,1e-08,3655.9,3655.8,10.29577939]
[1754058808271,1e-08,3655.9,3655.8,10.42957939]
[1754058808473,1e-08,3655.9,3655.8,9.96067939]
[1754058809007,1e-08,3655.9,3655.8,10.42857939]
[1754058809379,1e-08,3655.9,3655.8,8.05317939]
[1754058809780,1e-08,3655.9,3655.8,3.42217939]
[1754058809981,1e-08,3655.9,3655.8,0.33906707]
[1754058810188,1e-08,3655.9,3655.8,0.1368]
[1754058810415,2.28790001,3655.9,3654.8,1.9045]
[1754058810616,2.51669001,3655.9,3655.6,0.1368]
[1754058810912,2.73567872,3655.4,3655.3,4.629]
[1754058811125,0.4729,3655.4,3655.2,4.627]
[1754058811468,2.73604037,3655.0,3653.8,1.9045]
[1754058811670,2.2879,3655.3,3653.9,4.625]
[1754058811875,2.2879,3655.3,3653.8,1.9045]
[1754058811876,2.2879,3655.3,3654.5,2.73633544]
[1754058812199,2.2879,3655.3,3654.1,0.55]
[1754058812385,2.73585002,3655.2,3654.3,2.73644627]
[1754058812592,2.2879,3655.3,3654.2,4.623]
[1754058812911,0.4729,3655.8,3655.3,2.73568726]
[1754058813114,2.73581804,3655.3,3655.1,4.62]
[1754058813315,2.73581804,3655.3,3653.9,2.73673326]
[1754058813316,2.2879,3655.2,3653.9,1.9045]
[1754058813617,2.51669,3655.1,3654.0,4.62]
[1754058813801,2.2879,3655.1,3654.1,4.64836651]
[1754058814003,1.815,3655.5,3654.3,0.55]
[1754058814316,1.815,3655.5,3654.4,0.02736427]
[1754058814518,1.815,3655.5,3654.7,2.73618222]
[1754058814715,1.815,3655.5,3654.8,7.35606025]
[1754058814917,0.4739,3655.6,3654.8,4.62]
[1754058815120,3.20949918,3655.6,3654.8,4.62]
[1754058815284,2.73567872,3655.4,3654.2,2.73657342]
[1754058815480,2.2682,3655.3,3653.6,2.2137]
[1754058815685,3.18904327,3655.2,3654.4,2.7363767]
[1754058815885,2.7359185,3655.1,3654.4,2.7363767]
[1754058816109,2.73635604,3654.5,3654.4,4.616]
[1754058816332,2.73642954,3654.4,3654.1,4.618]
[1754058816659,2.73673775,3654.0,3653.7,4.618]
[1754058816784,2.2682,3653.9,3653.5,4.618]
[1754058816984,5.00513346,3653.8,3653.1,2.7473938]
[1754058817186,5.00513346,3653.8,3653.1,0.01]
[1754058817187,2.2682,3653.8,3653.1,0.01]
[1754058817490,2.2682,3653.8,3653.1,2.74738901]
[1754058817797,2.73708092,3653.6,3653.1,0.01]
[1754058818148,2.2182,3653.8,3653.1,0.01]
[1754058818286,0.4532,3653.5,3653.1,0.01]
[1754058818486,3.19031801,3653.5,3653.1,0.01]
[1754058818688,0.4532,3653.4,3653.1,0.01]
[1754058818889,2.73732617,3653.2,3653.1,0.01]
[1754058819233,0.4532,3653.3,3653.1,0.01]
[1754058819435,3.0,3653.8,3653.3,2.73724974]
[1754058819659,0.2736533,3654.2,3653.1,0.01]
[1754058819969,0.4532,3654.4,3653.2,0.02737326]
[1754058820149,2.2182,3654.4,3653.1,6.391]
[1754058820353,2.25240627,3654.3,3653.1,0.01]
[1754058820672,2.73708467,3653.6,3653.1,0.01]
[1754058820967,0.22524063,3654.2,3653.1,0.01]
[1754058820968,0.1368,3653.4,3653.1,0.01]
[1754058821468,2.44344063,3654.2,3653.8,2.73686905]
[1754058821469,0.4532,3654.2,3653.8,2.73686905]
[1754058821667,0.4532,3654.2,3653.3,2.73725125]
[1754058821668,0.1368,3654.2,3653.7,0.1368]
[1754058821827,0.1368,3654.3,3654.1,2.73661053]
[1754058822027,0.1368,3654.3,3654.0,2.73666867]
[1754058822265,0.1368,3654.5,3654.4,2.73642732]